bitfinex/quotes_SOLUSD_20220302
["timestamp","ask_amount","ask_price","bid_price","bid_amount"]
[1646212284660,23.5897,104.04,103.97,6.25]
[1646212285461,23.8397,104.04,103.97,6.25]
[1646212285862,0.25,104.04,103.97,6.25]
[1646212286066,23.5271,104.05,103.97,20.6742]
[1646212286663,0.25,104.05,103.97,20.6742]
[1646212286865,28.7499,104.07,103.97,116.4342]
[1646212286866,28.9999,104.07,103.97,116.4342]
[1646212287067,24.73613619,104.09,103.99,95.76]
[1646212287287,28.16,104.1,104.02,14.4171]
[1646212287487,23.16,104.1,104.02,23.3101]
[1646212287690,23.16,104.1,104.04,43.54857002]
[1646212287887,23.16,104.1,104.04,43.79857002]
[1646212288387,118.92,104.1,104.04,43.54857002]
[1646212288590,23.16,104.1,104.04,43.79857002]
[1646212289587,23.16,104.1,104.04,43.54857002]
[1646212289588,118.92,104.1,104.04,43.54857002]
[1646212290390,119.17,104.1,104.04,43.54857002]
[1646212290588,23.41,104.1,104.04,43.54857002]
[1646212290790,23.16,104.1,104.04,43.54857002]
[1646212290989,23.16,104.1,104.04,43.79857002]
[1646212292088,23.16,104.1,104.04,58.21367002]
[1646212292890,23.16,104.1,104.04,43.54857002]
[1646212293094,95.76,104.08,103.98,23.8808]
[1646212293391,116.90113619,104.08,103.98,23.8808]
[1646212293690,6.0,104.07,103.98,23.8808]
[1646212293895,6.25,104.07,103.98,23.8808]
[1646212294089,102.01,104.07,103.99,51.17052154]
[1646212294289,102.01,104.07,103.99,45.17052154]
[1646212294489,102.01,104.07,103.99,45.42052154]
[1646212294890,6.25,104.07,103.99,45.42052154]
[1646212295092,6.25,104.07,103.99,59.84192154]
[1646212295695,0.25,104.07,103.99,59.84192154]
[1646212295891,47.2443,104.08,104.0,6.0]
[1646212296092,47.2443,104.08,104.0,6.25]
[1646212297092,47.2443,104.08,104.0,20.6702]
[1646212297693,3.845,104.11,104.0,20.6702]
[1646212297894,47.9289,104.11,104.0,116.4302]
[1646212298094,47.9289,104.11,104.0,127.9702]
[1646212298295,47.6789,104.11,104.01,3.844]
[1646212298495,112.9,104.13,104.04,14.413]
[1646212298795,6.0,104.12,104.05,43.84400063]
[1646212298997,101.76,104.13,104.05,44.09400063]
[1646212299396,6.0,104.13,104.05,44.09400063]
[1646212300098,102.01,104.13,104.05,58.50760063]
[1646212300699,141.75669728,104.13,104.05,44.09400063]
[1646212300898,153.29669728,104.13,104.05,44.09400063]
[1646212301400,153.29669728,104.13,104.01,75.4219]
[1646212301605,2.36383972,104.12,104.0,9.843]
[1646212301801,95.76,104.1,104.0,9.843]
[1646212302004,113.3,104.09,104.0,9.843]
[1646212302199,113.55,104.09,104.0,6.0]
[1646212302398,113.55,104.09,103.99,6.0]
[1646212302600,113.55,104.09,104.05,1200.0]
[1646212302799,113.55,104.09,104.05,1251.08804785]
[1646212303002,127.9721,104.09,104.05,1251.08804785]
[1646212304804,142.6592,104.09,104.05,1251.08804785]
[1646212305002,17.79,104.09,104.05,1251.08804785]
[1646212305301,150.8106,104.15,104.05,1251.33804785]
[1646212305501,150.8106,104.15,104.06,6.0]
[1646212305502,62.4639,104.15,104.06,6.0]
[1646212305702,62.4639,104.15,104.06,6.25]
[1646212306203,95.76,104.14,104.06,6.25]
[1646212306604,6.0,104.13,104.06,20.6626]
[1646212306807,6.25,104.13,104.06,20.6626]
[1646212307204,24.5533,104.15,104.06,116.4226]
[1646212307405,14.4115,104.17,104.06,23.21164003]
[1646212307603,27.8858,104.18,104.06,23.21164003]
[1646212307804,27.8858,104.18,104.06,27.05264003]
[1646212308104,32.8858,104.18,104.06,27.05264003]
[1646212308304,128.6458,104.18,104.06,27.05264003]
[1646212308708,101.76,104.17,104.06,38.59264003]
[1646212309707,6.0,104.17,104.06,38.59264003]
[1646212310106,6.25,104.17,104.06,38.59264003]
[1646212310306,6.25,104.17,104.06,31.9526]
[1646212310606,76.81636227,104.17,104.06,14.4126]
[1646212310806,120.7593808,104.16,104.05,1274.21514785]
[1646212311007,97.75813339,104.14,104.05,1274.21514785]
[1646212311209,95.76,104.12,104.05,1274.21514785]
[1646212311410,95.76,104.12,104.05,1251.08804785]
[1646212311411,96.01,104.12,104.05,1251.08804785]
[1646212311608,6.0,104.11,104.05,1251.08804785]
[1646212311811,6.25,104.11,104.05,1251.08804785]
[1646212312408,0.25,104.11,104.05,1251.08804785]
[1646212312609,6.0,104.12,104.06,6.0]
[1646212312810,16.29557889,104.16,104.06,6.0]
[1646212313011,24.89636483,104.18,104.07,2.54904003]
[1646212313312,24.253,104.17,104.06,6.0]
[1646212313511,37.55353292,104.17,104.06,6.0]
[1646212313710,5.0,104.16,104.05,1251.08804785]
[1646212313909,105.602,104.15,104.05,1251.08804785]
[1646212314108,105.852,104.15,104.05,1251.08804785]
[1646212314908,102.01,104.15,104.05,1251.33804785]
[1646212315109,102.01,104.15,104.07,14.4114]
[1646212315311,6.25,104.15,104.07,14.6614]
[1646212316110,0.25,104.15,104.07,14.6614]
[1646212316309,95.76,104.14,104.07,14.6614]
[1646212316510,96.01,104.14,104.07,14.6614]
[1646212316712,0.25,104.14,104.07,14.6614]
[1646212317410,0.25,104.14,104.07,0.25]
[1646212317610,95.76,104.13,104.05,1200.0]
[1646212317811,101.76,104.12,104.05,1200.0]
[1646212318010,113.55,104.12,104.05,1200.0]
[1646212319211,113.55,104.12,104.06,52.24724357]
[1646212322415,127.9679,104.12,104.05,1200.0]
[1646212322618,131.8109,104.12,104.05,1200.0]
[1646212322818,95.76,104.1,104.05,1200.0]
[1646212323016,6.0,104.09,104.05,1200.0]
[1646212323217,6.25,104.09,104.05,1200.0]
[1646212323418,0.25,104.09,104.05,1200.0]
[1646212324017,6.0,104.1,104.05,1200.0]
[1646212324418,6.0,104.11,104.05,1200.0]
[1646212324619,6.0,104.11,104.06,53.08362583]
[1646212324928,28.6021,104.12,104.06,53.33362583]
[1646212325720,5.0,104.12,104.06,53.33362583]
[1646212325922,24.5225,104.14,104.06,53.33362583]
[1646212326128,24.7725,104.14,104.06,67.74612583]
[1646212327321,56.5216,104.16,104.06,67.74612583]
[1646212327322,33.4476,104.16,104.06,163.50612583]
[1646212327524,6.0,104.15,104.08,14.4091]
[1646212327722,6.0,104.15,104.08,23.4921]
[1646212328949,6.0,104.15,104.08,14.6591]
[1646212330350,6.25,104.15,104.06,67.49552583]
[1646212331551,6.25,104.15,104.08,14.4094]
[1646212331752,6.25,104.15,104.08,14.6594]
[1646212332553,6.0,104.15,104.08,14.6594]
[1646212334556,27.72203883,104.15,104.08,0.25]
[1646212334755,48.57864293,104.15,104.07,6.25]
[1646212334956,95.76,104.14,104.07,6.25]
[1646212335155,6.0,104.13,104.07,6.25]
[1646212335357,0.25,104.13,104.07,6.25]
[1646212336155,0.25,104.13,104.07,6.0]
[1646212336356,0.25,104.13,104.06,53.08362583]
[1646212336554,107.3,104.13,104.05,1224.1358]
[1646212336755,107.3,104.13,104.05,1200.0]
[1646212336756,101.76,104.12,104.05,1200.0]
[1646212336956,112.50905645,104.12,104.05,1200.0]
[1646212337156,140.83184534,104.12,104.05,1200.0]
[1646212337456,161.68844944,104.12,104.05,1200.0]
[1646212337656,220.45860738,104.12,104.05,1200.0]
[1646212338056,95.76,104.08,104.05,1200.0]
[1646212338256,104.79219997,104.07,104.05,1200.0]
[1646212338458,105.04219997,104.07,104.05,1200.0]
[1646212339861,102.01,104.07,104.05,1200.0]
[1646212340062,6.25,104.07,104.05,1200.0]
[1646212340465,0.25,104.07,104.05,1200.0]
[1646212340662,6.25,104.08,104.05,1200.0]
[1646212341061,102.01,104.08,104.05,1200.0]
[1646212341663,3.03219997,104.07,104.05,1200.0]
[1646212341866,3.28219997,104.07,104.05,1200.0]
[1646212342864,3.03219997,104.07,104.05,1200.0]
[1646212343367,6.0,104.08,104.05,1200.0]
[1646212343565,6.0,104.1,104.05,1200.0]
[1646212344165,11.0,104.1,104.05,1200.0]
[1646212345065,11.0,104.1,104.05,1200.25]
[1646212345266,24.4861,104.11,104.05,1200.25]
[1646212345470,26.4101,104.14,104.05,1200.25]
[1646212345670,22.5671,104.14,104.05,1200.25]
[1646212346571,22.8171,104.14,104.05,1200.25]
[1646212346771,118.5771,104.14,104.05,1200.25]
[1646212346972,118.5771,104.14,104.05,1214.6636]
[1646212347171,95.76,104.12,104.05,1200.25]
[1646212347371,96.01,104.12,104.05,1200.0]
[1646212347974,6.0,104.11,104.05,1200.0]
[1646212348175,6.25,104.11,104.05,1200.0]
[1646212348371,0.25,104.11,104.05,1200.0]
[1646212348572,0.25,104.11,104.05,1200.25]
[1646212348972,6.25,104.11,104.05,1200.25]
[1646212349172,0.25,104.11,104.05,1200.25]
[1646212349374,96.01,104.12,104.05,1200.25]
[1646212350072,96.01,104.12,104.05,1200.0]
[1646212350472,96.01,104.12,104.05,1200.25]
[1646212350675,96.01,104.12,104.05,1200.0]
[1646212350875,101.76,104.11,104.05,1200.0]
[1646212351174,102.01,104.11,104.05,1200.25]
[1646212351373,6.25,104.11,104.05,1200.0]
[1646212352678,107.01,104.11,104.05,1200.0]
[1646212352874,102.01,104.11,104.05,1200.0]
[1646212353279,107.01,104.11,104.05,1200.0]
[1646212353475,127.9696,104.11,104.05,1200.0]
[1646212353675,137.18385612,104.11,104.05,1200.0]
[1646212353975,236.96249905,104.11,104.05,1200.0]
[1646212354175,238.28265699,104.11,104.05,1200.0]
[1646212354374,95.76,104.06,104.05,1200.0]
[1646212354575,105.04219997,104.06,104.05,1200.0]
[1646212355376,6.0,104.06,104.05,1200.0]
[1646212355578,6.0,104.09,104.06,53.00561699]
[1646212355779,6.25,104.09,104.06,53.00561699]
[1646212356177,0.25,104.09,104.06,53.00561699]
[1646212356477,119.138,104.1,104.06,53.00561699]
[1646212356680,6.0,104.09,104.06,53.00561699]
[1646212356977,101.76,104.1,104.06,53.00561699]
[1646212357180,6.0,104.1,104.06,53.00561699]
[1646212357377,101.76,104.11,104.06,53.00561699]
[1646212357979,11.0,104.11,104.06,53.00561699]
[1646212358483,22.5671,104.14,104.06,53.00561699]
[1646212358682,22.5671,104.14,104.06,53.25561699]
[1646212359082,27.5671,104.14,104.06,53.25561699]
[1646212359482,123.3271,104.14,104.06,53.25561699]
[1646212359685,123.5771,104.14,104.06,53.25561699]
[1646212360083,118.5771,104.14,104.06,67.66801699]
[1646212360285,22.8171,104.14,104.06,67.66801699]
[1646212360488,123.5771,104.14,104.06,67.66801699]
[1646212360882,123.5771,104.14,104.06,53.25561699]
[1646212361091,101.76,104.13,104.06,53.25561699]
[1646212361285,102.01,104.13,104.06,53.25561699]
[1646212361488,102.01,104.13,104.06,0.25]
[1646212361686,161.3673096,104.13,104.05,1200.25]
[1646212362084,166.3673096,104.13,104.05,1200.25]
[1646212362302,166.3673096,104.13,104.05,1200.0]
[1646212362603,166.3673096,104.13,104.05,1256.15946875]
[1646212363103,180.7842096,104.13,104.05,1256.15946875]
[1646212363303,219.12675966,104.13,104.05,1200.0]
[1646212363505,252.24519253,104.13,104.05,1200.0]
[1646212363708,95.76,104.11,104.05,1200.0]
[1646212363906,95.76,104.09,104.05,1200.0]
[1646212364105,6.0,104.08,104.05,1200.0]
[1646212364306,6.25,104.08,104.05,1200.0]
[1646212364504,3.03219997,104.07,104.05,1200.0]
[1646212364705,3.28219997,104.07,104.05,1200.0]
[1646212364905,0.25,104.07,104.05,1200.0]
[1646212365707,6.0,104.09,104.05,1200.25]
[1646212365907,6.0,104.1,104.05,1200.25]
[1646212366706,5.0,104.11,104.05,1200.25]
[1646212366907,120.0751,104.13,104.05,1200.25]
[1646212367206,24.3151,104.13,104.05,1200.25]
[1646212367407,24.3151,104.13,104.05,1214.6639]
[1646212368210,3.842,104.14,104.05,1310.4239]
[1646212368510,52.13955794,104.16,104.05,1310.4239]
[1646212368511,35.02835794,104.16,104.05,1321.9639]
[1646212368709,31.18635794,104.16,104.06,6.0]
[1646212368913,24.8662,104.16,104.08,14.4098]
[1646212369111,24.8662,104.16,104.09,56.56416772]
[1646212369312,24.8662,104.16,104.09,56.81416772]
[1646212369711,95.76,104.16,104.09,56.81416772]
[1646212369911,139.7353096,104.16,104.09,56.81416772]
[1646212370111,3.841,104.15,104.06,68.0725]
[1646212370312,3.841,104.15,104.06,68.3225]
[1646212370612,100.76,104.14,104.06,62.3225]
[1646212370815,101.01,104.14,104.06,47.9108]
[1646212371012,101.76,104.13,104.06,47.9108]
[1646212371212,102.01,104.13,104.06,60.50128715]
[1646212371813,134.4377,104.13,104.06,0.25]
[1646212372014,160.78297077,104.13,104.05,1200.0]
[1646212372816,160.78297077,104.13,104.06,60.24435155]
[1646212373415,95.76,104.1,104.05,1200.0]
[1646212373615,96.01,104.1,104.05,1200.0]
[1646212374417,6.0,104.09,104.05,1200.0]
[1646212374617,6.25,104.09,104.05,1200.0]
[1646212375117,102.01,104.09,104.05,1200.0]
[1646212375618,6.25,104.09,104.05,1200.0]
[1646212376017,0.25,104.09,104.05,1200.0]
[1646212376218,35.0812,104.1,104.05,1200.0]
[1646212376619,34.8312,104.1,104.05,1200.0]
[1646212376819,135.5912,104.1,104.05,1200.0]
[1646212378017,135.8412,104.1,104.05,1200.0]
[1646212379018,25.6708,104.1,104.05,1200.0]
[1646212379320,6.25,104.1,104.05,1200.0]
[1646212379518,0.25,104.1,104.05,1200.25]
[1646212379717,42.6187,104.12,104.05,1200.25]
[1646212380120,101.76,104.11,104.05,1200.0]
[1646212380321,116.4288,104.11,104.05,1200.0]
[1646212381925,121.4288,104.11,104.05,1200.0]
[1646212382524,141.29665966,104.11,104.05,1200.0]
[1646212382724,110.1824,104.09,104.05,1200.0]
[1646212382925,95.76,104.07,104.05,1200.0]
[1646212383124,96.01,104.07,104.05,1200.0]
[1646212383826,101.01,104.07,104.05,1200.0]
[1646212384025,101.01,104.07,104.05,1198.50303158]
[1646212384229,104.79219997,104.06,104.05,1181.51691838]
[1646212384530,105.04219997,104.06,104.05,1174.01291938]
[1646212384727,110.04219997,104.06,104.05,1174.01291938]
[1646212385127,158.13839997,104.06,104.05,422.8058194]
[1646212385333,259.27919137,104.06,104.05,0.00260722]
[1646212385533,263.12319137,104.06,103.97,3.842]
[1646212385728,0.49344583,104.05,103.97,3.842]
[1646212386029,95.76,104.0,103.97,3.842]
[1646212386229,95.76,103.98,103.93,46.5034]
[1646212386428,95.76,103.98,103.92,54.84301284]
[1646212386429,96.01,103.98,103.9,22.5396]
[1646212386629,95.76,103.96,103.9,22.5396]
[1646212386830,102.069,103.96,103.88,23.6148]
[1646212387330,107.3,103.95,103.88,71.7193548]
[1646212387529,121.9915,103.95,103.88,71.7193548]
[1646212387729,6.0,103.94,103.88,71.7193548]
[1646212387933,6.25,103.94,103.88,71.7193548]
[1646212388329,0.25,103.94,103.88,48.1045548]
[1646212388628,14.6921,103.94,103.86,22.8886]
[1646212388830,6.0,103.93,103.87,6.0]
[1646212389029,12.067,103.93,103.87,6.0]
[1646212389430,12.067,103.93,103.88,42.95561739]
[1646212390033,107.827,103.93,103.87,6.0]
[1646212390332,26.5107,103.93,103.86,22.8886]
[1646212390533,30.3607,103.93,103.86,22.8886]
[1646212390935,41.9007,103.93,103.86,22.8886]
[1646212391132,41.9007,103.93,103.86,79.04866193]
[1646212391434,2.36458889,103.92,103.86,79.04866193]
[1646212391634,6.0,103.91,103.86,22.8886]
[1646212391832,6.25,103.91,103.84,23.0465]
[1646212392032,6.25,103.91,103.85,6.0]
[1646212392234,2.36458889,103.9,103.85,6.0]
[1646212392433,2.36458889,103.9,103.84,23.0465]
[1646212392434,6.649,103.9,103.84,23.0465]
[1646212392635,6.0,103.89,103.84,23.0465]
[1646212392934,6.25,103.89,103.85,52.79556746]
[1646212393332,6.25,103.89,103.84,23.0465]
[1646212393532,0.25,103.89,103.84,23.0465]
[1646212393733,0.25,103.89,103.84,23.2965]
[1646212393932,6.0,103.89,103.84,23.2965]
[1646212394133,6.25,103.89,103.84,23.2965]
[1646212394534,0.25,103.89,103.84,0.25]
[1646212394738,6.25,103.89,103.83,81.16762358]
[1646212394934,0.25,103.89,103.83,81.16762358]
[1646212395135,6.0,103.89,103.83,81.16762358]
[1646212395334,6.25,103.89,103.83,81.16762358]
[1646212395736,0.25,103.89,103.83,58.62802358]
[1646212396137,0.25,103.89,103.83,0.25]
[1646212396335,0.25,103.89,103.82,6.0]
[1646212396535,116.458,103.9,103.82,6.25]
[1646212396736,5.0,103.89,103.82,6.25]
[1646212396935,5.25,103.89,103.82,6.25]
[1646212397135,5.25,103.89,103.82,50.4444641]
[1646212397339,5.25,103.89,103.83,0.15554103]
[1646212397536,0.25,103.89,103.82,50.4444641]
[1646212397938,5.0,103.89,103.82,50.4444641]
[1646212398136,6.25,103.9,103.82,50.4444641]
[1646212398337,11.0,103.9,103.82,50.4444641]
[1646212398739,6.0,103.9,103.83,0.14550052]
[1646212398940,3.851,103.93,103.83,0.14550052]
[1646212398941,6.0,103.92,103.83,0.14550052]
[1646212399339,6.0,103.92,103.82,146.2044641]
[1646212399742,11.0,103.93,103.82,146.2044641]
[1646212400141,11.25,103.93,103.82,157.7444641]
[1646212400338,6.25,103.93,103.82,182.3350641]
[1646212400541,0.25,103.93,103.82,182.3350641]
[1646212400841,11.25,103.94,103.82,182.3350641]
[1646212401039,11.25,103.94,103.85,61.21222334]
[1646212401239,11.25,103.94,103.85,61.46222334]
[1646212403040,6.0,103.94,103.85,157.22222334]
[1646212403244,11.0,103.94,103.85,171.31126337]
[1646212403444,11.0,103.94,103.88,14.4367]
[1646212403746,3.85,103.97,103.89,51.12438568]
[1646212403944,5.0,103.98,103.89,51.37438568]
[1646212404147,3.848,103.99,103.89,51.37438568]
[1646212404646,39.75623883,103.99,103.89,65.80988568]
[1646212405143,6.0,103.98,103.89,65.80988568]
[1646212405743,5.0,103.97,103.89,65.80988568]
[1646212405945,5.25,103.97,103.89,65.80988568]
[1646212406343,17.21258889,103.96,103.89,51.12438568]
[1646212406544,17.46258889,103.96,103.89,51.12438568]
[1646212406744,134.07052633,103.96,103.89,51.12438568]
[1646212406943,134.07052633,103.96,103.88,23.0547]
[1646212406944,155.54256516,103.96,103.88,23.0547]
[1646212407243,2.36458889,103.95,103.88,23.0547]
[1646212407446,95.76,103.94,103.86,23.1193]
[1646212407646,6.0,103.93,103.86,23.1193]
[1646212407947,6.25,103.93,103.86,78.14635562]
[1646212408348,47.75482633,103.93,103.86,23.1193]
[1646212408544,148.51482633,103.93,103.86,23.1193]
[1646212408752,5.0,103.92,103.86,23.1193]
[1646212408950,6.0,103.91,103.86,23.1193]
[1646212409150,5.25,103.91,103.86,23.1193]
[1646212409351,6.0,103.9,103.86,23.1193]
[1646212409550,6.25,103.9,103.84,23.6889]
[1646212409955,5.25,103.9,103.84,23.6889]
[1646212410155,6.0,103.89,103.84,23.6889]
[1646212410353,5.25,103.89,103.82,22.6463]
[1646212410653,11.0,103.88,103.82,22.6463]
[1646212410854,11.25,103.88,103.82,22.6463]
[1646212411067,107.01,103.88,103.82,22.6463]
[1646212411269,0.14010256,103.87,103.8,23.3707]
[1646212411468,104.612,103.87,103.8,23.3707]
[1646212411667,6.0,103.86,103.8,23.3707]
[1646212411871,28.6519,103.86,103.8,23.3707]
[1646212412068,33.6519,103.86,103.8,23.3707]
[1646212412269,0.30209884,103.85,103.8,23.3707]
[1646212412567,5.30209884,103.85,103.8,23.3707]
[1646212412769,5.55209884,103.85,103.8,23.3707]
[1646212412967,5.55209884,103.85,103.78,84.12260779]
[1646212413168,5.30209884,103.85,103.78,84.37260779]
[1646212413368,0.30209884,103.85,103.78,84.37260779]
[1646212413568,0.30209884,103.85,103.78,180.13260779]
[1646212413867,0.30209884,103.85,103.78,214.45770779]
[1646212414068,0.30209884,103.85,103.8,47.40701467]
[1646212414268,0.30209884,103.85,103.8,47.65701467]
[1646212415069,0.30209884,103.85,103.8,62.10501467]
[1646212415270,0.30209884,103.89,103.8,62.10501467]
[1646212415671,4.15309884,103.89,103.8,62.10501467]
[1646212415869,6.0,103.88,103.8,62.10501467]
[1646212416070,6.30209884,103.89,103.8,62.10501467]
[1646212416270,6.30209884,103.89,103.8,61.85501467]
[1646212416471,10.15309884,103.89,103.8,61.85501467]
[1646212416872,3.851,103.88,103.8,61.85501467]
[1646212417076,4.101,103.88,103.8,61.85501467]
[1646212417673,6.0,103.87,103.8,62.10501467]
[1646212417871,6.25,103.87,103.8,62.10501467]
[1646212418574,0.30209884,103.86,103.8,62.10501467]
[1646212419174,0.30209884,103.86,103.8,47.65701467]
[1646212420587,0.30209884,103.86,103.8,47.40701467]
[1646212422085,0.30209884,103.86,103.8,47.65701467]
[1646212422983,0.30209884,103.86,103.81,0.27995114]
[1646212423186,0.30209884,103.86,103.82,49.29010785]
[1646212423383,0.30209884,103.9,103.82,49.54010785]
[1646212423788,0.30209884,103.9,103.82,73.99050785]
[1646212425086,0.30209884,103.9,103.82,88.43610785]
[1646212427090,0.30209884,103.9,103.82,92.28710785]
[1646212427891,23.42080434,103.9,103.82,73.99050785]
[1646212428091,6.0,103.89,103.82,73.99050785]
[1646212428392,29.3687055,103.89,103.82,73.99050785]
[1646212428791,0.30209884,103.88,103.82,73.99050785]
[1646212432092,0.30209884,103.88,103.82,88.43640785]
[1646212432293,0.00209884,103.88,103.82,88.43640785]
[1646212432494,0.00209884,103.88,103.84,55.18340749]
[1646212432694,0.00209884,103.88,103.84,114.997]
[1646212432893,0.00209884,103.88,103.85,6.0]
[1646212433094,0.00209884,103.88,103.85,29.0822]
[1646212433295,0.00209884,103.88,103.85,43.5231]
[1646212433695,0.00209884,103.88,103.86,23.8916]
[1646212434092,0.00209884,103.88,103.86,24.1416]
[1646212434994,0.00209884,103.88,103.86,38.5819]
[1646212435595,0.00209884,103.88,103.86,27.9916]
[1646212435795,0.00209884,103.88,103.86,24.1416]
[1646212437200,0.00209884,103.88,103.86,23.8916]
[1646212440099,0.00209884,103.88,103.86,24.1416]
[1646212441304,0.00209884,103.88,103.86,119.9016]
[1646212441705,0.00209884,103.88,103.87,6.0]
[1646212441903,0.00209884,103.88,103.87,29.8661]
[1646212443506,0.00209884,103.88,103.87,128.17514003]
[1646212443706,0.00209884,103.88,103.87,139.71514003]
[1646212445629,0.00209884,103.88,103.87,43.95514003]
[1646212446329,0.00209884,103.88,103.87,23.6161]
[1646212447026,0.00209884,103.88,103.83,76.32514003]
[1646212447227,0.00209884,103.88,103.84,6.0]
[1646212448026,0.00209884,103.88,103.84,56.95385142]
[1646212448230,0.00209884,103.88,103.84,57.20385142]
[1646212448429,0.00209884,103.88,103.84,59.75289145]
[1646212448829,0.00209884,103.88,103.84,8.79904003]
[1646212449430,0.00209884,103.88,103.84,8.54904003]
[1646212450130,0.00209884,103.88,103.84,22.99214003]
[1646212450330,0.00209884,103.88,103.85,24.6058]
[1646212450730,0.00209884,103.88,103.85,27.40484003]
[1646212451131,0.00209884,103.88,103.85,137.60554003]
[1646212451331,0.00209884,103.88,103.86,101.93437472]
[1646212451533,0.00209884,103.88,103.86,113.55]
[1646212451731,0.00209884,103.88,103.87,2.54904003]
[1646212451931,0.00209884,103.88,103.87,104.55904003]
[1646212452132,0.00209884,103.88,103.87,153.22854003]
[1646212453131,0.00209884,103.88,103.87,167.66494003]
[1646212455633,0.00209884,103.88,103.87,71.90494003]
[1646212455835,0.00209884,103.88,103.86,11.54]
[1646212456034,0.00209884,103.88,103.85,2.54904003]
[1646212456235,3.03219997,103.87,103.82,3.85]
[1646212456534,3.28219997,103.87,103.82,3.85]
[1646212456736,3.28219997,103.87,103.73,190.45384486]
[1646212456737,0.59965847,103.86,103.8,60.95859265]
[1646212456934,14.4524,103.86,103.8,60.95859265]
[1646212457133,14.7024,103.86,103.8,60.95859265]
[1646212457734,112.14164286,103.86,103.76,83.1452]
[1646212457935,6.12549701,103.85,103.76,71.6052]
[1646212458135,16.02295599,103.84,103.73,48.1779]
[1646212458434,6.0,103.83,103.72,46.8424]
[1646212458633,0.25,103.83,103.73,51.93639079]
[1646212458834,0.25,103.83,103.73,66.39449079]
[1646212459436,6.25,103.83,103.73,66.39449079]
[1646212459636,6.25,103.83,103.74,6.0]
[1646212459835,6.25,103.83,103.75,44.67307007]
[1646212460037,20.707,103.83,103.77,60.62798549]
[1646212460439,20.707,103.83,103.74,6.0]
[1646212460440,22.35336585,103.83,103.74,6.0]
[1646212460637,29.62536585,103.83,103.74,6.25]
[1646212460839,95.76,103.82,103.71,97.3983]
[1646212461039,14.4628,103.79,103.71,97.3983]
[1646212461239,0.31729867,103.78,103.71,23.7374]
[1646212461443,0.31729867,103.78,103.69,74.0596]
[1646212461444,0.31729867,103.78,103.7,47.3542564]
[1646212461640,6.31729867,103.78,103.7,47.3542564]
[1646212461844,6.25,103.78,103.7,47.3542564]
[1646212462240,103.58397588,103.78,103.7,47.3542564]
[1646212462841,103.58397588,103.78,103.71,6.0]
[1646212463043,118.04757588,103.78,103.71,6.0]
[1646212463442,118.04757588,103.78,103.7,47.3542564]
[1646212463643,129.58757588,103.78,103.7,47.3542564]
[1646212464045,8.855,103.77,103.7,47.3542564]
[1646212464244,16.00690024,103.75,103.7,47.3542564]
[1646212464447,21.6955,103.75,103.7,47.3542564]
[1646212464649,6.0,103.74,103.64,124.44]
[1646212464844,11.77192693,103.74,103.63,5.0]
[1646212465044,7.552,103.74,103.66,2.54904003]
[1646212465244,7.552,103.74,103.68,14.4648]
[1646212465644,7.552,103.74,103.69,44.85148579]
[1646212466043,5.0,103.77,103.71,56.07737525]
[1646212466244,5.0,103.77,103.71,56.32737525]
[1646212466445,3.856,103.78,103.71,56.32737525]
[1646212466646,14.4634,103.79,103.71,56.32737525]
[1646212466949,3.855,103.78,103.71,56.32737525]
[1646212467146,4.105,103.78,103.71,56.32737525]
[1646212468747,12.487,103.78,103.71,56.32737525]
[1646212468948,12.487,103.78,103.71,70.78817525]
[1646212469148,8.632,103.78,103.71,70.78817525]
[1646212469749,0.25,103.78,103.71,70.78817525]
[1646212469949,4.105,103.8,103.71,73.33721528]